fUST/lending_fUST_20240524
["ID","MTS","AMOUNT","RATE_DAILY","PERIOD"]
[327830814,1716527444643,-501.25381332,0.00024657,2]
[327830815,1716527444653,-502.13703219,0.00024657,2]
[327830816,1716527444663,-500.0,0.00024657,2]
[327830817,1716527444674,-153.091958,0.00024657,2]
[327830818,1716527444684,-504.16934547,0.00024657,2]
[327830819,1716527444694,-500.0,0.00024657,2]
[327830820,1716527444704,-500.0,0.00024657,2]
[327830821,1716527444714,-502.03766963,0.00024657,2]
[327830822,1716527444735,-503.16399862,0.00024657,2]
[327830823,1716527444747,-585.18718838,0.00024657,2]
[327830824,1716527444758,-500.56264307,0.00024657,2]
[327830825,1716527444768,-502.21466262,0.00024657,2]
[327830826,1716527444779,-501.9871717,0.00024657,2]
[327830827,1716527444790,-552.53,0.00024657,2]
[327830828,1716527444800,-502.29515641,0.00024657,2]
[327830829,1716527444811,-500.0,0.00024657,2]
[327830830,1716527444824,-561.05,0.00024657,2]
[327830831,1716527444835,-500.0,0.00024657,2]
[327830832,1716527444846,-723.01171383,0.00024657,2]
[327830833,1716527445025,-64.47828617,0.00024657,2]
[327830834,1716527445036,-305.52172383,0.00024657,2]
[327830928,1716528155679,505.0,0.000202,10]
[327830938,1716528350124,150.0,0.000189,2]
[327830939,1716528452313,-166.666666,0.00022536,2]
[327830940,1716528452334,-362.20721548,0.00023,2]
[327830941,1716528452355,-4288.615,0.00023028,2]
[327830942,1716528452375,-166.666666,0.00023304,2]
[327830943,1716528452395,-153.0,0.00023441,2]
[327830944,1716528452417,-150.0,0.000239,2]
[327830945,1716528452437,-166.666666,0.00024072,2]
[327830946,1716528452457,-1000.0,0.00024299,2]
[327830947,1716528452477,-151.0,0.00024306,5]
[327830948,1716528452496,-1000.0,0.00024307,2]
[327830949,1716528452515,-1000.0,0.00024321,2]
[327830950,1716528452535,-399.22778652,0.00024349,2]
[327831011,1716528634566,-166.666666,0.00023018,2]
[327831013,1716528634577,-1000.0,0.00024181,2]
[327831015,1716528634586,-427.31262312,0.00024183,2]
[327831018,1716528634598,-572.68737688,0.00024183,2]
[327831020,1716528634608,-1000.0,0.00024236,2]
[327831022,1716528634620,-933.61054279,0.00024254,2]
[327831024,1716528634629,-1000.0,0.00024282,2]
[327831026,1716528634639,-151.0,0.00024308,5]
[327831028,1716528634649,-600.77221348,0.00024349,2]
[327831030,1716528634658,-1000.0,0.00024369,2]
[327831032,1716528634668,-259.212909,0.00024384,2]
[327831034,1716528634678,-165.629472,0.00024384,2]
[327831036,1716528634687,-1000.0,0.00024385,2]
[327831038,1716528634697,-1000.0,0.00024454,2]
[327831040,1716528634706,-151.0,0.00024464,5]
[327831042,1716528634716,-922.54669671,0.00024557,3]
[327831044,1716528634726,-500.24208294,0.00024656,2]
[327831046,1716528634735,-3000.0,0.00024656,2]
[327831048,1716528634745,-3022.57751504,0.00024656,2]
[327831050,1716528634755,-1094.81,0.00024656,4]
[327831052,1716528634766,-1094.81,0.00024656,4]
[327831054,1716528634776,-1094.81,0.00024656,4]
[327831056,1716528634787,-1094.81,0.00024656,4]
[327831058,1716528634797,-1094.81,0.00024656,4]
[327831060,1716528634806,-1094.81,0.00024656,4]
[327831063,1716528634816,-1094.81,0.00024656,4]
[327831065,1716528634826,-1094.81,0.00024656,4]
[327831068,1716528634835,-1094.81,0.00024656,4]
[327831070,1716528634845,-1094.81,0.00024656,4]
[327831073,1716528634855,-1094.81,0.00024656,4]
[327831076,1716528634866,-1094.81,0.00024656,4]
[327831078,1716528634875,-12846.36797859,0.00024657,11]
[327831336,1716528637778,1000.0,0.00020714,2]
[327831544,1716528640268,-5950.72810133,0.00024657,11]
[327831547,1716528640279,-795.30624847,0.00024657,11]
[327831550,1716528640289,-150.0,0.00024657,2]
[327831553,1716528640300,-145.57574841,0.00024657,2]
[327831558,1716528640312,-341.51697593,0.00024657,2]
[327831560,1716528640324,-12.90727566,0.00024657,2]
[327831562,1716528640334,-506.15180333,0.00024657,2]
[327831564,1716528640345,-500.54357199,0.00024657,2]
[327831566,1716528640355,-506.34222065,0.00024657,2]
[327831568,1716528640365,-581.31,0.00024657,2]
[327831570,1716528640378,-511.99481771,0.00024657,2]
[327831572,1716528640388,-506.42011934,0.00024657,2]
[327831574,1716528640398,-502.16364631,0.00024657,2]
[327831576,1716528640407,-262.73258393,0.00024657,2]
[327831924,1716528644724,-238.78501378,0.00024657,2]
[327831926,1716528644734,-502.27667091,0.00024657,2]
[327831928,1716528644744,-500.58934728,0.00024657,2]
[327831930,1716528644753,-502.81628279,0.00024657,2]
[327831932,1716528644763,-500.0,0.00024657,2]
[327831934,1716528644772,-500.0,0.00024657,2]
[327831937,1716528644787,-1002.4109145,0.00024657,2]
[327831939,1716528644802,-502.23758949,0.00024657,2]
[327831942,1716528644818,-500.0,0.00024657,2]
[327831944,1716528644831,-503.88742815,0.00024657,2]
[327831946,1716528644843,-500.0,0.00024657,2]
[327831949,1716528644857,-500.46261792,0.00024657,2]
[327831951,1716528644870,-500.0,0.00024657,2]
[327831954,1716528644886,-501.14238014,0.00024657,2]
[327831956,1716528644902,-502.64122331,0.00024657,2]
[327831959,1716528644916,-500.0,0.00024657,2]
[327831961,1716528644932,-500.0,0.00024657,2]
[327831964,1716528644948,-500.0,0.00024657,2]
[327831966,1716528644964,-502.99974637,0.00024657,2]
[327831968,1716528644979,-500.0,0.00024657,2]
[327831970,1716528644992,-500.0,0.00024657,2]
[327831973,1716528645008,-500.0,0.00024657,2]
[327831975,1716528645022,-502.81215154,0.00024657,2]
[327831977,1716528645036,-500.0,0.00024657,2]
[327831979,1716528645050,-500.0,0.00024657,2]
[327831982,1716528645061,-500.0,0.00024657,2]
[327831984,1716528645074,-533.30655218,0.00024657,2]
[327831986,1716528645088,-502.63029772,0.00024657,2]
[327831989,1716528645102,-500.0,0.00024657,2]
[327831991,1716528645117,-500.0,0.00024657,2]
[327831993,1716528645136,-502.32883919,0.00024657,2]
[327831996,1716528645151,-500.0,0.00024657,2]
[327831998,1716528645167,-500.0,0.00024657,2]
[327832001,1716528645181,-504.5,0.00024657,2]
[327832003,1716528645194,-502.63371944,0.00024657,2]
[327832005,1716528645205,-500.0,0.00024657,2]
[327832007,1716528645218,-1519.02,0.00024657,2]
[327832009,1716528645232,-503.0291291,0.00024657,2]
[327832012,1716528645246,-500.0,0.00024657,2]
[327832014,1716528645260,-500.0,0.00024657,2]
[327832016,1716528645272,-507.29523871,0.00024657,2]
[327832018,1716528645284,-502.08041429,0.00024657,2]
[327832021,1716528645296,-348.28214027,0.00024657,2]
[327832023,1716528645311,-500.0,0.00024657,2]
[327832025,1716528645321,-500.0,0.00024657,2]
[327832027,1716528645333,-395.42856801,0.00024657,2]
[327832029,1716528645344,-501.63840747,0.00024657,2]
[327832032,1716528645355,-500.0,0.00024657,2]
[327832034,1716528645369,-1011.36,0.00024657,2]
[327832036,1716528645385,-263.83775045,0.00024657,2]
[327834133,1716528668749,200.0,0.00020913,2]
[327835007,1716529007088,-300.0,0.0003,120]
[327835068,1716529184390,-1000.0,0.00022,20]
[327835077,1716529643145,-166.666666,0.00022789,2]
[327835078,1716529643167,-362.20721548,0.00023,2]
[327835079,1716529643189,-163.492418,0.00023017,2]
[327835080,1716529643210,-3311.2694291,0.00023182,2]
[327835081,1716529643231,-188.04894357,0.00024,2]
[327835082,1716529643252,-2008.46352069,0.000243,4]
[327835083,1716529643276,-296.211419,0.00024384,2]
[327835084,1716529643302,-1000.0,0.00024391,2]
[327835085,1716529643324,-1000.0,0.00024424,2]
[327835086,1716529643346,-1000.0,0.00024433,2]
[327835087,1716529643371,-1000.0,0.00024445,2]
[327835088,1716529643391,-1000.0,0.00024489,2]
[327835089,1716529643412,-1000.0,0.0002449,2]
[327835090,1716529643435,-1000.0,0.00024502,2]
[327835091,1716529643457,-1000.0,0.00024518,2]
[327835092,1716529643480,-1000.0,0.00024519,2]
[327835093,1716529643502,-162.41825108,0.00024556,2]
[327835094,1716529643524,-1490.52504207,0.00024557,2]
[327835095,1716529643546,-151.38566364,0.00024557,2]
[327835096,1716529643567,-447.33709379,0.00024563,2]
[327835097,1716529646126,-552.66290621,0.00024563,2]
[327835098,1716529646146,-262.16747299,0.00024565,2]
[327835099,1716529646167,-1000.0,0.0002459,2]
[327835100,1716529646186,-300.604236,0.00024619,2]
[327835101,1716529646206,-2668.52667116,0.00024626,2]
[327835102,1716529646227,-618.04871364,0.0002463,2]
[327835110,1716529748217,-1398.08035328,0.00022,2]
[327835190,1716529833948,-165.629472,0.00024384,2]
[327835191,1716529833958,-1246.36263884,0.00024557,3]
[327835192,1716529833967,-162.41825107,0.00024557,2]
[327835193,1716529833976,-381.95128636,0.0002463,2]
[327835194,1716529833986,-1000.0,0.00024643,2]
[327835195,1716529833996,-200.0,0.0002465,7]
[327835196,1716529834008,-294.03302147,0.00024655,2]
[327835197,1716529834017,-500.0,0.00024656,2]
[327835198,1716529834027,-500.0,0.00024656,2]
[327835199,1716529834035,-500.0,0.00024656,2]
[327835200,1716529834045,-371.36102001,0.00024656,2]
[327835201,1716529834054,-461.3342362,0.00024656,2]
[327835202,1716529834064,-500.0,0.00024656,2]
[327835203,1716529834073,-365.35820965,0.00024656,2]
[327835204,1716529834083,-81.2518644,0.00024656,2]
[327835220,1716529838756,-418.7481356,0.00024656,2]
[327835221,1716529838769,-500.0,0.00024656,2]
[327835222,1716529838778,-500.0,0.00024656,2]
[327835223,1716529838787,-500.0,0.00024656,2]
[327835224,1716529838796,-500.0,0.00024656,2]
[327835225,1716529838806,-500.0,0.00024656,2]
[327835226,1716529838816,-500.0,0.00024656,2]
[327835227,1716529838825,-623.6869422,0.00024656,2]
[327835228,1716529838835,-500.0,0.00024656,2]
[327835229,1716529838845,-500.0,0.00024656,2]
[327835230,1716529838854,-500.0,0.00024656,2]
[327835231,1716529838864,-322.69156875,0.00024656,2]
[327835232,1716529838876,-500.0,0.00024656,2]
[327835233,1716529838885,-7383.04422062,0.00024656,2]
[327835234,1716529838894,-547.4,0.00024656,4]
[327835235,1716529838904,-547.4,0.00024656,4]
[327835236,1716529838913,-547.4,0.00024656,4]
[327835237,1716529838923,-547.4,0.00024656,4]
[327835238,1716529838932,-547.4,0.00024656,4]
[327835240,1716529838941,-547.4,0.00024656,4]
[327835241,1716529838950,-547.4,0.00024656,4]
[327835242,1716529838959,-547.4,0.00024656,4]
[327835243,1716529838969,-547.4,0.00024656,4]
[327835244,1716529838978,-547.4,0.00024656,4]
[327835245,1716529838987,-547.4,0.00024656,4]
[327835246,1716529838997,-547.4,0.00024656,4]
[327835247,1716529839006,-547.4,0.00024656,4]
[327835248,1716529839018,-15911.17315235,0.00024657,11]
[327835249,1716529839049,-353.22602815,0.00024657,11]
[327835250,1716529839358,-2812.81367169,0.00024657,11]
[327835251,1716529839368,-5306.19238906,0.00024657,11]
[327835280,1716529844187,-766.69434834,0.00024657,11]
[327835281,1716529844197,-500.333,0.00024657,2]
[327835282,1716529844207,-211.985,0.00024657,2]
[327835283,1716529844217,-152.263,0.00024657,2]
[327835284,1716529844227,-4.36598247,0.00024657,2]
[327835285,1716529844239,-498.23888428,0.00024657,2]
[327835286,1716529844248,-222.50417581,0.00024657,2]
[327835287,1716529844258,-500.0,0.00024657,2]
[327835288,1716529844268,-70.39634648,0.00024657,2]
[327835315,1716529857698,21838.31603468,0.000202,2]
[327835334,1716530311091,320.0,0.00028,120]
[327835337,1716530611100,896.31216814,0.00018,2]
[327835338,1716530691394,896.31216814,0.00020913,2]
[327835341,1716530847166,-400.0,0.00021918,7]
[327835342,1716530847186,-896.31216814,0.00022738,2]
[327835343,1716530847206,-600.0,0.00023671,2]
[327835344,1716530847226,-600.0,0.00023917,2]
[327835345,1716530847246,-600.0,0.00024164,2]
[327835346,1716530847266,-151.0,0.00024345,5]
[327835347,1716530847288,-281.400848,0.00024384,2]
[327835348,1716530847311,-165.629472,0.00024384,2]
[327835349,1716530847331,-608.96108434,0.0002441,2]
[327835350,1716530847351,-151.0,0.00024498,5]
[327835351,1716530847372,-197.54221131,0.00024556,2]
[327835352,1716530847394,-197.54221131,0.00024557,2]
[327835353,1716530847414,-2070.30635067,0.00024557,2]
[327835354,1716530852088,-384.67521013,0.00024557,2]
[327835388,1716531032522,-771.003868,0.00023474,2]
[327835389,1716531032534,-151.0,0.00024336,5]
[327835390,1716531032545,-29779.19523201,0.000244,2]
[327835391,1716531032554,-151.0,0.0002449,5]
[327835392,1716531032563,-205.07194546,0.00024555,2]
[327835393,1716531032572,-197.54221131,0.00024556,2]
[327835394,1716531032581,-198.4472077,0.00024557,2]
[327835395,1716531032591,-2458.76730299,0.000246,7]
[327835396,1716531032600,-151.0,0.00024643,5]
[327835397,1716531032609,-240.63357236,0.00024654,2]
[327835398,1716531032618,-279.63876136,0.00024654,2]
[327835399,1716531032627,-13389.95408153,0.00024655,2]
[327835435,1716531038386,-245.92298999,0.00024654,2]
[327835436,1716531038396,-500.0,0.00024654,2]
[327835437,1716531038406,-500.0,0.00024654,2]
[327835438,1716531038416,-433.28708133,0.00024654,2]
[327835439,1716531038426,-183.04992868,0.00024654,2]
[327835443,1716531038642,-174.49910289,0.00024654,2]
[327835444,1716531038653,-500.0,0.00024654,2]
[327835445,1716531038663,-350.81935498,0.00024654,2]
[327835471,1716531044680,-306.49009474,0.00024407,2]
[327835473,1716531044690,-3309.40360828,0.00024654,2]
[327835475,1716531044700,-149.18064502,0.00024654,2]
[327835476,1716531044710,-500.0,0.00024654,2]
[327835477,1716531044723,-500.0,0.00024654,2]
[327835478,1716531044732,-500.0,0.00024654,2]
[327835479,1716531044742,-604.96868241,0.00024654,2]
[327835480,1716531044755,-500.0,0.00024654,2]
[327835481,1716531044766,-388.47405089,0.00024654,2]
[327835482,1716531044776,-500.0,0.00024654,2]
[327835483,1716531044786,-500.0,0.00024654,2]
[327835484,1716531044798,-500.0,0.00024654,2]
[327835485,1716531044813,-500.0,0.00024654,2]
[327835486,1716531044823,-500.0,0.00024654,2]
[327835487,1716531044835,-500.0,0.00024654,2]
[327835488,1716531044845,-500.0,0.00024654,2]
[327835489,1716531044855,-500.0,0.00024654,2]
[327835490,1716531044864,-500.0,0.00024654,2]
[327835491,1716531044876,-500.0,0.00024654,2]
[327835492,1716531044886,-220.68423448,0.00024654,2]
[327835493,1716531044899,-279.31576552,0.00024654,2]
[327835494,1716531044910,-500.0,0.00024654,2]
[327835495,1716531044920,-500.0,0.00024654,2]
[327835496,1716531044931,-500.0,0.00024654,2]
[327835497,1716531044941,-500.0,0.00024654,2]
[327835498,1716531044951,-500.0,0.00024654,2]
[327835499,1716531044961,-500.0,0.00024654,2]
[327835500,1716531044972,-500.0,0.00024654,2]
[327835501,1716531044981,-500.0,0.00024654,2]
[327835502,1716531044990,-500.0,0.00024654,2]
[327835503,1716531045000,-500.0,0.00024654,2]
[327835504,1716531045010,-500.0,0.00024654,2]
[327835505,1716531045020,-584.64773246,0.00024654,2]
[327835506,1716531045029,-500.0,0.00024654,2]
[327835507,1716531045039,-500.0,0.00024654,2]
[327835508,1716531045048,-500.0,0.00024654,2]
[327835509,1716531045058,-500.0,0.00024654,2]
[327835510,1716531045068,-500.0,0.00024654,2]
[327835511,1716531045078,-500.0,0.00024654,2]
[327835512,1716531045087,-500.0,0.00024654,2]
[327835513,1716531045097,-500.0,0.00024654,2]
[327835514,1716531045107,-500.0,0.00024654,2]
[327835515,1716531045120,-500.0,0.00024654,2]
[327835516,1716531045130,-17840.48251958,0.00024655,2]
[327835517,1716531045142,-208.61566248,0.00024655,2]
[327835520,1716531045166,-478.51414659,0.00024655,2]
[327835522,1716531045176,-288.11298665,0.00024655,2]
[327835524,1716531045186,-5505.01660368,0.00024655,11]
[327835526,1716531045199,-523.52943763,0.00024655,11]
[327835527,1716531045210,-4423.33257631,0.00024656,11]
[327835530,1716531202863,157.45114224,0.00020913,2]
[327835545,1716531335680,155.12172284,0.00020913,2]
[327835546,1716531353613,154.98450155,0.00020913,2]
[327835547,1716531373600,226.86741289,0.00020913,2]
[327835548,1716531399776,-180.0,0.00021918,7]
[327835549,1716531425784,-519.81655062,0.00021918,7]
[327835553,1716531638833,1000.0,0.00027,30]
[327835556,1716532052126,-600.0,0.00023671,2]
[327835557,1716532052147,-604.07457083,0.00023917,2]
[327835558,1716532052169,-597.60204068,0.00024,2]
[327835614,1716532234911,-263.924645,0.00024,2]
[327835616,1716532234920,-151.0,0.00024329,5]
[327835618,1716532234930,-151.0,0.00024329,5]
[327835619,1716532234939,-399.834383,0.00024384,2]
[327835620,1716532234948,-153.2533128,0.000244,2]
[327835621,1716532234958,-208.3226242,0.000244,2]
[327835622,1716532234968,-151.0,0.00024483,5]
[327835623,1716532234977,-151.0,0.00024483,5]
[327835624,1716532234987,-190.47486916,0.000245,2]
[327835625,1716532235000,-50.1587032,0.000245,2]
[327835626,1716532235009,-179.18393406,0.00024556,2]
[327835627,1716532235018,-255.52810335,0.00024556,2]
[327835628,1716532235028,-1066.24462683,0.00024557,2]
[327835629,1716532235037,-179.18393406,0.00024557,2]
[327835630,1716532235047,-505.92698403,0.000246,4]
[327835631,1716532235056,-1614.41001378,0.00024629,2]
[327835754,1716532245653,-3983.9,0.00024629,2]
[327835765,1716532245947,-1448.38470052,0.00024629,2]
[327835767,1716532245957,-151.0,0.00024638,5]
[327835769,1716532245967,-3983.9,0.00024655,2]
[327835770,1716532245977,-10491.73086689,0.00024656,2]
[327835771,1716532245986,-500.0,0.00024656,2]
[327835772,1716532245996,-153.23529925,0.00024656,2]
[327835773,1716532246006,-500.0,0.00024656,2]
[327835774,1716532246015,-185.69446342,0.00024656,2]
[327835775,1716532246026,-416.54221526,0.00024656,2]
[327835776,1716532246035,-500.0,0.00024656,2]
[327835777,1716532246044,-281.49060473,0.00024656,2]
[327835778,1716532246054,-500.0,0.00024656,2]
[327835779,1716532246063,-500.0,0.00024656,2]
[327835780,1716532246073,-500.0,0.00024656,2]
[327835781,1716532246082,-500.0,0.00024656,2]
[327835782,1716532246102,-500.0,0.00024656,2]
[327835783,1716532246112,-275.39431974,0.00024656,2]
[327835784,1716532246124,-500.0,0.00024656,2]
[327835785,1716532246134,-500.0,0.00024656,2]
[327835786,1716532246147,-500.0,0.00024656,2]
[327835787,1716532246157,-500.0,0.00024656,2]
[327835788,1716532246168,-500.0,0.00024656,2]
[327835789,1716532246179,-500.0,0.00024656,2]
[327835790,1716532246189,-166.01446844,0.00024656,2]
[327835791,1716532246199,-364.25182738,0.00024656,2]
[327835792,1716532246209,-500.0,0.00024656,2]
[327835793,1716532246220,-500.93647433,0.00024656,2]
[327835794,1716532246229,-500.0,0.00024656,2]
[327835796,1716532246239,-2325.47,0.00024656,4]
[327835798,1716532246249,-2325.47,0.00024656,4]
[327835799,1716532246259,-2325.47,0.00024656,4]
[327835800,1716532246269,-2325.47,0.00024656,4]
[327835801,1716532246279,-2325.47,0.00024656,4]
[327835802,1716532246289,-2325.47,0.00024656,4]
[327835803,1716532246298,-2325.47,0.00024656,4]
[327835804,1716532246308,-2325.47,0.00024656,4]
[327835805,1716532246318,-2325.47,0.00024656,4]
[327835806,1716532246327,-2325.47,0.00024656,4]
[327835807,1716532246337,-2325.47,0.00024656,4]
[327835808,1716532246346,-2325.47,0.00024656,4]
[327835809,1716532246355,-2325.47,0.00024656,4]
[327835810,1716532246365,-2325.47,0.00024656,4]
[327835811,1716532246375,-1414.82656747,0.00024656,3]
[327835812,1716532246384,-496.0,0.00024657,2]
[327835813,1716532246394,-8766.68549941,0.00024657,11]
[327835823,1716532248712,-240.63357236,0.00024654,2]
[327835824,1716532248722,-1859.98535867,0.00024657,11]
[327835825,1716532287672,150.89437394,0.00025665,30]
[327835832,1716532527360,1639.0,0.00022,10]
[327835834,1716532871233,155.23411879,0.00020913,2]
[327835835,1716532884464,155.10264194,0.00020913,2]
[327835838,1716533003831,395.46739855,0.00020913,2]
[327835839,1716533070771,15135.3792901,0.0002,2]
[327835840,1716533070807,32512.9508842,0.0002,2]
[327835841,1716533070829,42731.87565389,0.0002,2]
[327835859,1716533180859,288.82409823,0.000189,2]
[327835861,1716533244260,-3690.08387,0.0002,2]
[327835862,1716533346113,-4782.91115687,0.0002,2]
[327835863,1716533346134,-1398.08035328,0.00022,2]
[327835864,1716533352138,-755.98634795,0.000223,2]
[327835907,1716533432913,-3323.92515861,0.00023,2]
[327835909,1716533432924,-949.14000453,0.00023609,2]
[327835910,1716533432936,-288.82409823,0.000239,2]
[327835913,1716533432957,-243.66446403,0.000239,2]
[327835915,1716533432970,-45146.02276995,0.00023999,2]
[327835999,1716533438825,-506.48176332,0.00023999,2]
[327836001,1716533438837,-1844.84,0.00023999,2]
[327836054,1716533443012,-704.50224091,0.00023999,2]
[327836055,1716533443022,-2302.90089604,0.00024,7]
[327836057,1716533443033,-331.08729416,0.00024,2]
[327836059,1716533443044,-159.274182,0.00024384,2]
[327836061,1716533443054,-379.842663,0.00024384,2]
[327836063,1716533443065,-153.0,0.00024384,2]
[327836064,1716533443076,-153.0,0.00024384,2]
[327836065,1716533443087,-155.21644,0.00024384,2]
[327836066,1716533443098,-153.0,0.00024384,2]
[327836067,1716533443108,-153.0,0.00024384,2]
[327836069,1716533443120,-153.0,0.00024384,2]
[327836071,1716533443131,-153.0,0.00024384,2]
[327836073,1716533443140,-153.0,0.00024384,2]
[327836074,1716533443150,-153.0,0.00024384,2]
[327836076,1716533443160,-153.0,0.00024384,2]
[327836078,1716533443169,-153.0,0.00024384,2]
[327836080,1716533443179,-153.0,0.00024384,2]
[327836081,1716533443189,-153.0,0.00024384,2]
[327836082,1716533443198,-153.0,0.00024384,2]
[327836083,1716533443208,-153.0,0.00024384,2]
[327836084,1716533443217,-153.0,0.00024384,2]
[327836085,1716533443227,-153.0,0.00024384,2]
[327836086,1716533443236,-153.0,0.00024384,2]
[327836087,1716533443246,-153.0,0.00024384,2]
[327836088,1716533443259,-153.0,0.00024411,2]
[327836089,1716533443268,-352.461752,0.00024602,2]
[327836090,1716533443278,-352.02756061,0.00024604,2]
[327836091,1716533443287,-500.0,0.00024655,2]
[327836092,1716533443297,-550.0,0.00024655,2]
[327836093,1716533443307,-500.0,0.00024655,2]
[327836094,1716533443317,-208.14595637,0.00024655,2]
[327836095,1716533443327,-285.81798025,0.00024655,2]
[327836096,1716533443337,-500.0,0.00024655,2]
[327836097,1716533443347,-500.0,0.00024655,2]
[327836098,1716533443356,-500.0,0.00024655,2]
[327836099,1716533443366,-500.0,0.00024655,2]
[327836100,1716533443376,-500.0,0.00024655,2]
[327836101,1716533443385,-572.45848213,0.00024655,2]
[327836102,1716533443394,-500.0,0.00024655,2]
[327836103,1716533443404,-500.0,0.00024655,2]
[327836104,1716533443413,-500.0,0.00024655,2]
[327836105,1716533443423,-500.0,0.00024655,2]
[327836106,1716533443433,-500.0,0.00024655,2]
[327836107,1716533443443,-178.51809226,0.00024655,2]
[327836108,1716533443452,-163.29994614,0.00024655,2]
[327836109,1716533443462,-362.20721548,0.00024655,2]
[327836110,1716533443472,-26314.11794488,0.00024656,11]
[327836111,1716533443481,-3014.27302065,0.00024656,11]
[327836112,1716533443492,-6792.53729161,0.00024656,2]
[327836113,1716533443505,-151.037012,0.00024656,2]
[327836114,1716533443516,-3000.0,0.00024656,2]
[327836115,1716533443525,-3022.57751504,0.00024656,2]
[327836116,1716533443535,-151.134656,0.00024656,2]
[327836117,1716533443545,-151.0,0.00024656,2]
[327836118,1716533443555,-1026.171787,0.00024656,2]
[327836119,1716533443565,-1026.171787,0.00024656,2]
[327836120,1716533443575,-151.0,0.00024656,2]
[327836121,1716533443586,-151.0,0.00024656,2]
[327836122,1716533443596,-151.0,0.00024656,2]
[327836123,1716533443606,-151.0,0.00024656,2]
[327836124,1716533443616,-151.0,0.00024656,2]
[327836125,1716533443626,-151.0,0.00024656,2]
[327836126,1716533443635,-170.880108,0.00024656,2]
[327836127,1716533443645,-151.0,0.00024656,2]
[327836128,1716533443656,-54.38418486,0.00024656,2]
[327836155,1716533444322,-153.0,0.00024384,2]
[327836156,1716533444332,-96.61581514,0.00024656,2]
[327836157,1716533444341,-151.0,0.00024656,2]
[327836158,1716533444351,-250.464316,0.00024656,2]
[327836159,1716533444361,-3.32928433,0.00024656,2]
[327836185,1716533728478,-600000.0,0.00033831,120]
[327836186,1716533750519,-600000.0,0.00033831,120]
[327836187,1716533754929,-600000.0,0.00033831,120]
[327836189,1716533829326,-1770538.43842499,0.00033831,120]
[327836190,1716533829351,-1755.2054733,0.00033831,120]
[327836191,1716533829374,-507.47260096,0.00033831,30]
[327836192,1716533829398,-1322.01689559,0.00033831,30]
[327836193,1716533829420,-1164.90828865,0.00033831,30]
[327836194,1716533829443,-1500.18054914,0.00033831,30]
[327836195,1716533829468,-1354.26923666,0.00033831,30]
[327836196,1716533829492,-415.32204862,0.00033831,30]
[327836197,1716533829516,-228.51851403,0.00033831,30]
[327836198,1716533829539,-2000.0,0.00033831,120]
[327836199,1716533829567,-1014.7160275,0.00033831,120]
[327836200,1716533829592,-1694.78659729,0.00033831,30]
[327836201,1716533829617,-889.08201878,0.00033831,30]
[327836202,1716533829647,-1215615.08332449,0.00033831,120]
[327836203,1716533853521,-321061.3952882,0.00033831,120]
[327836204,1716533853545,-2724.0,0.00033831,60]
[327836205,1716533853568,-1007.46,0.00033831,30]
[327836206,1716533853595,-1530618.20315168,0.00033831,120]
[327836207,1716533853623,-2105.56609776,0.00033831,120]
[327836208,1716533853652,-1498.05436805,0.00033831,120]
[327836209,1716533853676,-5882.51023112,0.00033831,30]
[327836210,1716533853702,-525.0,0.00033831,30]
[327836211,1716533853735,-525.0,0.00033831,30]
[327836212,1716533853775,-525.0,0.00033831,30]
[327836213,1716533853808,-525.0,0.00033831,30]
[327836214,1716533853845,-525.0,0.00033831,30]
[327836215,1716533853881,-525.0,0.00033831,30]
[327836216,1716533853915,-525.0,0.00033831,30]